[Event "Krakow Championship-A 2022"]
[Site "Krakow"]
[Date "2022.06.25"]
[Round "1.6"]
[White "Kvaloy, Aksel Bu"]
[Black "Leniart, Arkadiusz"]
[Result "0-1"]
[ECO "C88"]
[WhiteElo "2296"]
[BlackElo "2473"]
[Annotator "TA"]
[PlyCount "92"]
[EventDate "2022.06.25"]
[EventType "swiss"]
[EventCountry "POL"]
[SourceTitle "playchess.com"]
[Source "ChessBase"]
[SourceQuality "1"]
[TimeControl "40/5400+30:1800+30"]

{[%evp 22,92,23,28,35,29,36,52,39,40,60,34,31,6,11,0,0,-61,-56,-86,-93,-82,-77,-61,-62,-238,-185,-198,-197,-197,-191,-198,-175,-243,-227,-227,-227,-240,-222,-251,-246,-256,-250,-335,-311,-362,-358,-331,-352,-369,-250,-277,-27,-291,-315,-315,-314,-309,-301,-299,-232,-371,-291,-411,-407,-377,-350,-587,-586,-589,-588,-487,-474]} 1. e4 {[%emt 0:00:05]} e5 {[%emt 0:00:16]} 2. Nf3 {[%emt 0:00:15]} Nc6 {[%emt 0:00:16]} 3. Bb5 {[%emt 0:00:38][%cal Bf1b5,Bb5a4,Ba4b3,Bb3a2][%mdl 32]} a6 {[%emt 0:00:06]} 4. Ba4 {[%emt 0:00:15]} Nf6 {[%emt 0:00:06]} 5. O-O {[%emt 0:00:39]} Be7 {[%emt 0:00:04]} 6. Re1 {[%emt 0:00:23]} b5 {[%emt 0:00:09]} 7. Bb3 {[%emt 0:00:06]} O-O {[%emt 0:00:07]} 8. a4 {[%emt 0:01:35]} Bb7 {[%emt 0:02:03]} 9. d3 {[%emt 0:01:28]} d6 {[%emt 0:00:28]} 10. Nbd2 {[%emt 0:01:24][%cal Bb1d2,Bd2f1,Bf1e3][%mdl 32]} Na5 {[%emt 0:02:16] 10...Nd7 is more advanced technology.} 11. Ba2 {[%emt 0:00:52]} c5 {[%emt 0:03:01]} 12. Nf1 {[%emt 0:03:12]} Qc7 {[%emt 0:09:44] C88: Closed Ruy Lopez: Anti-Marshall Systems.} 13. Ne3 {[%emt 0:08:32]} g6 {[%emt 0:00:48] [#]} 14. Nf1 $146 {[%emt 0:09:56]} ({Predecessor:} 14. h3 Rad8 15. Bd2 Nc6 16. Nd5 Nxd5 17. Bxd5 Bf6 18. Nh2 Kh8 19. Ng4 Bg7 20. Ne3 {1-0 (36) Travkina,A (2213)-Gevorgyan,D (2395) Taganrog 2015}) 14... Kg7 {[%emt 0:06:52] White is slightly better.} 15. Bd2 {[%emt 0:03:04]} h6 {[%emt 0:08:00]} 16. Qc1 {[%emt 0:07:27]} (16. b4 $5 {[%cal Rb4a5]} Nc6 17. bxc5 $11) 16... Rh8 {[%emt 0:00:39]} 17. Ne3 {[%emt 0:14:44]} Nc6 {[%emt 0:14:28][%cal Ba5c6,Bc6d8,Bd8e6][%mdl 32]} 18. c3 {[%emt 0:04:12]} Nd8 {[%emt 0:03:10]} 19. Nh4 {[%emt 0:18:49]} (19. Nd5 $11 Nxd5 20. Bxd5) 19... Ne6 $1 $15 {[%emt 0:13:48]} 20. Nef5+ {[%emt 0:05:40]} gxf5 {[%emt 0:02:45]} 21. Bxh6+ {[%emt 0:01:32]} Kg8 {[%emt 0:08:30][%cal Bg7g8,Bg8f8,Bf8e7][%mdl 32] [#] Hoping for ...f4.} 22. Nxf5 {[%emt 0:08:14] Strongly threatening Bxe6.} (22. Bxe6 $2 f4 23. Bxf4 exf4 $19) 22... Ng4 {[%emt 0:02:21]} ({Resist} 22... bxa4 23. Re3 (23. Bxe6 fxe6 24. Qg5+ Kf7 $16) 23... Rh7 24. Rg3+ Kh8 25. Bxe6 $18) 23. Re3 $2 {[%emt 0:05:19]} Nxh6 {[%emt 0:05:18]} ({Worse is} 23... Rxh6 24. Rg3 Rg6 25. Bxe6 fxe6 26. Rxg4 Rxg4 27. Nh6+ Kg7 28. Nxg4) 24. Rg3+ {[%emt 0:02:41]} Kf8 {[%emt 0:00:07]} 25. Bxe6 {[%emt 0:00:49]} Nxf5 {[%emt 0:01:36]} ({Weaker is} 25... fxe6 26. Nxh6 c4 27. Qe3) 26. Bxf5 {[%emt 0:00:20]} Bf6 {[%emt 0:00:49]} 27. c4 {[%emt 0:01:13]} (27. axb5 $142 axb5 28. Rxa8+ Bxa8 29. Rf3) 27... bxa4 {[%emt 0:01:31]} 28. Rxa4 {[%emt 0:00:14]} Bc6 {[%emt 0:00:16]} 29. Ra3 {[%emt 0:00:40]} Ke7 {[%emt 0:00:10]} 30. Qa1 {[%emt 0:00:29]} Rhb8 {[%emt 0:00:53]} 31. Re3 {[%emt 0:00:35]} Rb4 {[%emt 0:01:52]} 32. Re1 {[%emt 0:00:34]} Qb6 {[%emt 0:00:26]} 33. Rb1 {[%emt 0:00:28]} a5 {[%emt 0:01:36]} 34. Bg4 {[%emt 0:00:31]} a4 {[%emt 0:00:31]} 35. Bd1 {[%emt 0:00:29]} Rb8 {[%emt 0:00:14][%cal Rb4b2]} 36. Bxa4 {[%emt 0:00:32]} Rxb2 $2 {[%emt 0:01:22] [#]} ({Black should try} 36... Bxa4 $19 37. Rxa4 Rxb2 38. Rxb2 Qxb2 39. Ra7+ Ke6) 37. Rxb2 $4 {[%emt 0:00:27][%mdl 8192]} (37. Rb3 $1 $11 Rxb3 38. Rxb3 Qxb3 39. Bxb3 Rxb3 40. Qd1) 37... Qxb2 $19 {[%emt 0:00:06]} 38. Qxb2 {[%emt 0:00:29]} Rxb2 {[%emt 0:00:05]} 39. Kf1 {[%emt 0:00:14]} Bxa4 {[%emt 0:01:13]} 40. Rxa4 {[%emt 0:00:05][%mdl 4096] Endgame KRB-KR} Bg5 {[%emt 0:00:06]} 41. g3 {[%emt 0:31:01]} (41. Ra7+ {was called for.} Ke6 42. Ra8) 41... Bd2 {[%emt 0:30:13]} 42. Ra3 {[%emt 0:00:43]} (42. h4 $142) 42... Bb4 {[%emt 0:00:10]} 43. Ra7+ {[%emt 0:00:21]} Ke6 {[%emt 0:00:24] And now ...Bc3 would win.} 44. Kg1 $2 {[%emt 0:00:38]} (44. h4) 44... Bc3 {[%emt 0:02:39] Black is clearly winning.} 45. Ra1 {[%emt 0:00:34]} Rd2 {[%emt 0:00:28]} 46. Ra3 {[%emt 0:00:20]} Bd4 {[%emt 0:00:07] Weighted Error Value: White=0.48/Black=0.24 (precise)} 0-1

[Event "Krakow Championship-A 2022"]
[Site "Krakow"]
[Date "2022.06.25"]
[Round "1.7"]
[White "Kozak, Antoni"]
[Black "Szustakowski, Antoni"]
[Result "1/2-1/2"]
[ECO "A06"]
[WhiteElo "2459"]
[BlackElo "2265"]
[Annotator "TA"]
[PlyCount "118"]
[EventDate "2022.06.25"]
[EventType "swiss"]
[EventCountry "POL"]
[SourceTitle "playchess.com"]
[Source "ChessBase"]
[SourceQuality "1"]
[TimeControl "40/5400+30:1800+30"]

{[%evp 22,118,31,23,19,19,28,24,35,24,31,23,39,39,47,0,9,0,0,-18,0,-37,-25,-37,0,0,0,0,3,-14,-4,-5,-7,-30,-24,-29,-13,-34,-35,-75,0,0,-4,-8,0,0,0,0,0,0,0,0,0,0,0,0,0,0,0,0,0,0,0,0,10,0,0,0,0,0,0,0,0,0,0,0,8,8,8,0,0,0,0,0,0,0,0,0,0,0,0,0,0,0,0,-8,-8,-8,-8]} 1. Nf3 {[%emt 0:00:04]} d5 {[%emt 0:00:12]} 2. e3 {[%emt 0:00:06]} Nf6 {[%emt 0:00:39]} 3. c4 {[%emt 0:00:05]} e6 {[%emt 0:00:33]} 4. b3 {[%emt 0:00:05]} Be7 {[%emt 0:01:03]} 5. Bb2 {[%emt 0:01:03]} O-O {[%emt 0:03:20]} 6. Nc3 {[%emt 0:01:58]} c5 {[%emt 0:07:45]} 7. cxd5 {[%emt 0:00:15]} exd5 {[%emt 0:00:06]} 8. d4 {[%emt 0:00:16]} Nc6 {[%emt 0:03:25]} 9. Be2 {[%emt 0:03:52]} cxd4 {[%emt 0:13:56]} 10. Nxd4 {[%emt 0:00:14]} Bc5 {[%emt 0:00:03]} 11. Nxc6 {[%emt 0:01:48]} bxc6 {[%emt 0:00:05]} 12. O-O {[%emt 0:01:07]} Bd6 {[%emt 0:03:21] A13: English Opening: 1...e6.} 13. Rc1 {[%emt 0:11:23]} Bd7 {[%emt 0:08:01]} 14. Bf3 {[%emt 0:10:45]} Re8 {[%emt 0:02:33] White has an edge.} 15. Re1 {[%emt 0:01:56] [#]} Bf5 $146 {[%emt 0:07:54]} ({Predecessor:} 15... Qe7 16. Na4 Ne4 17. g3 Ng5 18. Bg2 Rac8 19. Qd4 f6 20. Qxa7 Ne4 21. Qd4 Be5 {0-1 (61) Reinderman,D (2575)-Schoppen,C (2508) Amstelveen 2019}) 16. Ne2 {[%emt 0:11:50] And now Nd4 would win.} Rc8 {[%emt 0:11:31]} 17. Ng3 {[%emt 0:09:42]} Bg6 {[%emt 0:01:33]} 18. Qd4 {[%emt 0:01:27]} Qa5 {[%emt 0:06:30]} 19. Qd1 {[%emt 0:10:27]} Qxa2 {[%emt 0:05:54]} 20. Bd4 {[%emt 0:05:19]} Be5 {[%emt 0:06:33]} 21. Re2 {[%emt 0:09:31]} Qa6 {[%emt 0:00:47]} 22. Ra1 {[%emt 0:00:41]} Qb5 {[%emt 0:00:52]} (22... Qb7 $5 {[%cal Re5d4]}) 23. Bxe5 $1 {[%emt 0:01:08]} Rxe5 {[%emt 0:00:05]} 24. Rxa7 {[%emt 0:01:25]} Rb8 {[%emt 0:00:50]} 25. Rb2 {[%emt 0:01:03]} c5 {[%emt 0:03:08][%cal Od5d4]} 26. Ne2 {[%emt 0:02:56]} Qb6 {[%emt 0:01:13]} 27. Qa1 {[%emt 0:01:41]} Ree8 {[%emt 0:00:50]} 28. h4 {[%emt 0:01:31]} Be4 {[%emt 0:02:41]} 29. Bxe4 {[%emt 0:00:58]} Nxe4 {[%emt 0:00:01]} 30. Nf4 {[%emt 0:00:47]} d4 {[%emt 0:00:35]} (30... Red8 $17) 31. exd4 $1 $11 {[%emt 0:01:27] The position is equal.} cxd4 {[%emt 0:00:04]} 32. Re2 {[%emt 0:01:08]} Nc3 {[%emt 0:01:51]} 33. Rxe8+ {[%emt 0:01:24]} Rxe8 {[%emt 0:00:04]} 34. Re7 {[%emt 0:02:57][%cal Re7e8] [#]} Qd8 {[%emt 0:01:28]} 35. Rxe8+ {[%emt 0:00:04]} Qxe8 {[%emt 0:00:05][%mdl 4096] Endgame KQN-KQN} 36. Qa7 {[%emt 0:00:48]} Qd8 {[%emt 0:00:10]} 37. g3 {[%emt 0:01:19]} h6 {[%emt 0:01:06] [#] Strongly threatening ...d3.} 38. Nd3 {[%emt 0:00:51]} Qd5 {[%emt 0:00:20]} 39. b4 {[%emt 0:02:25]} Qb5 {[%emt 0:02:12]} 40. Qa8+ {[%emt 0:00:43]} Kh7 {[%emt 0:00:05]} 41. Qf3 {[%emt 0:30:28]} Kg8 {[%emt 0:34:46]} 42. h5 {[%emt 0:00:00]} Kf8 {[%emt 0:00:00]} 43. g4 {[%emt 0:00:00]} Ke7 {[%emt 0:00:00]} 44. Kf1 {[%emt 0:00:00]} Qa6 {[%emt 0:00:00]} 45. Qf5 {[%emt 0:00:00]} Qb5 {[%emt 0:00:00]} 46. Qxb5 {[%emt 0:00:00]} Nxb5 {[%emt 0:00:00] KN-KN} 47. Nc5 {[%emt 0:00:00]} Kd6 {[%emt 0:00:00]} 48. Ke2 {[%emt 0:00:00]} Kd5 {[%emt 0:00:00]} 49. Kd3 {[%emt 0:00:00]} Nc3 {[%emt 0:00:00]} 50. Nb3 {[%emt 0:00:00]} Na2 {[%emt 0:00:00]} 51. Nxd4 {[%emt 0:00:00] Hoping for Nc2.} Nxb4+ {[%emt 0:00:00]} 52. Ke3 {[%emt 0:00:00]} Ke5 {[%emt 0:00:00]} 53. f4+ {[%emt 0:00:00]} Kf6 {[%emt 0:00:00]} 54. Ke4 {[%emt 0:00:00]} g6 {[%emt 0:01:41]} 55. hxg6 {[%emt 0:00:00]} fxg6 {[%emt 0:00:08]} 56. f5 {[%emt 0:00:00]} gxf5+ {[%emt 0:00:19]} 57. Nxf5 {[%emt 0:00:00]} Kg5 {[%emt 0:00:05]} 58. Nxh6 {[%emt 0:00:00]} Kxh6 {[%emt 0:00:05]} 59. g5+ {[%emt 0:00:00]} Kxg5 {Weighted Error Value: White=0.05 (flawless) /Black=0.05 (flawless)} 1/2-1/2

[Event "Krakow Championship-A 2022"]
[Site "Krakow"]
[Date "2022.06.25"]
[Round "1.8"]
[White "Sieber, Fiona"]
[Black "Klimkowski, Jan"]
[Result "0-1"]
[ECO "B90"]
[WhiteElo "2264"]
[BlackElo "2401"]
[Annotator "TA"]
[PlyCount "82"]
[EventDate "2022.06.25"]
[EventType "swiss"]
[EventCountry "POL"]
[SourceTitle "playchess.com"]
[Source "ChessBase"]
[SourceQuality "1"]
[TimeControl "40/5400+30:1800+30"]

{[%evp 21,82,0,14,0,0,0,0,0,0,0,23,12,9,-20,-13,-166,-156,-147,-150,-181,-180,-177,-171,-177,-151,-212,-190,-177,-116,-116,-120,-122,-93,-186,-187,-187,-165,-292,-281,-278,-270,-318,-214,-514,-518,-485,-499,-577,-596,-595,-595,-595,-595,-570,-575,-565,-552,-1633,-1633,-1273,-1270,-2124,-1884]} 1. e4 {[%emt 0:00:02]} c5 {[%emt 0:00:07]} 2. Nf3 {[%emt 0:00:05]} d6 {[%emt 0:00:05]} 3. d4 {[%emt 0:00:03]} cxd4 {[%emt 0:00:04]} 4. Nxd4 {[%emt 0:00:04]} Nf6 {[%emt 0:00:05]} 5. Nc3 {[%emt 0:00:02]} a6 {[%emt 0:00:03]} 6. Be3 {[%emt 0:00:19]} e5 {[%emt 0:00:28]} 7. Nf3 {[%emt 0:01:10]} Qc7 {[%emt 0:00:51]} 8. a4 {[%emt 0:03:22]} Be6 {[%emt 0:00:24]} 9. Be2 {[%emt 0:01:06]} Be7 {[%emt 0:02:06]} 10. O-O {[%emt 0:02:01]} O-O {[%emt 0:01:39]} 11. h3 {[%emt 0:16:24]} h6 {[%emt 0:03:04]} 12. a5 {[%emt 0:11:41] B90: Sicilian Najdorf: Unusual White 6th moves, 6 Be3 Ng4 and 6 Be3 e5.} Nbd7 {[%emt 0:04:56]} 13. Nd5 {[%emt 0:01:18]} Nxd5 {[%emt 0:02:47]} 14. exd5 {[%emt 0:00:02] The position is equal.} Bf5 {[%emt 0:00:13]} 15. c4 {[%emt 0:00:33]} Bh7 {[%emt 0:02:04]} 16. b4 {[%emt 0:03:47]} f5 {[%emt 0:06:37] [#]} 17. Qb3 $146 {[%emt 0:07:16]} ({Predecessor:} 17. Bc1 f4 18. Bb2 Bf6 19. Nd2 e4 20. Bxf6 Rxf6 21. Bg4 Ne5 22. Be6+ Kh8 23. Rc1 {0-1 (33) Krzywda,A (2152)-Das,S (2431) Chess.com INT 2020}) 17... Bf6 {[%emt 0:06:09] Hoping for ...f4.} 18. c5 $2 {[%emt 0:11:43]} (18. Rad1 $11) 18... f4 $19 {[%emt 0:02:30]} 19. cxd6 {[%emt 0:00:18]} Qd8 {[%emt 0:06:33]} 20. Bc5 {[%emt 0:02:13]} e4 $1 {[%emt 0:01:52][%csl LRa1,LRf3]} 21. Nh2 {[%emt 0:01:17]} Bxa1 {[%emt 0:01:09]} 22. Rxa1 {[%emt 0:00:07]} Qg5 {[%emt 0:03:17]} 23. Rd1 {[%emt 0:17:20]} (23. Bd4 $17) 23... Rac8 {[%emt 0:02:50]} ({Not} 23... f3 24. Bf1 $17) 24. Bd4 {[%emt 0:03:51]} f3 {[%emt 0:06:56]} (24... Bf5 $19 {And now ...f3 would win.} 25. Kh1 Qg6) 25. Bf1 $17 {[%emt 0:00:19]} fxg2 $40 {[%emt 0:03:07][%mdl 128] White is in trouble. The board is on fire.} 26. Bxg2 {[%emt 0:00:09]} Rc1 {[%emt 0:01:52]} 27. Ng4 {[%emt 0:06:06] [#]} (27. Rxc1 $17 Qxc1+ 28. Nf1) 27... Rxd1+ $1 $19 {[%emt 0:02:03]} 28. Qxd1 {[%emt 0:00:01] [#]} Bf5 $1 {[%emt 0:02:21] ...h5 is the strong threat.} ({And not} 28... Qxd5 29. Nxh6+ gxh6 30. Qg4+ Qg5 31. Qxd7 $11) 29. Be3 {[%emt 0:07:15]} (29. Qe2 $142) 29... Qg6 {[%emt 0:00:35] White must now prevent ...h5.} 30. Kh1 {[%emt 0:02:16]} Qxd6 {[%emt 0:01:45]} 31. Qd4 {[%emt 0:01:27]} Qg6 {[%emt 0:01:32]} 32. Ne5 $2 {[%emt 0:01:01]} (32. d6 {keeps fighting.}) 32... Qh5 {[%emt 0:01:58] Black is clearly winning.} 33. Nxd7 {[%emt 0:00:47]} Bxd7 {[%emt 0:00:17]} 34. Kh2 {[%emt 0:00:18] [#]} Bxh3 $1 {[%emt 0:03:05][%mdl 512]} 35. Bxh3 {[%emt 0:00:19]} Rf3 {[%emt 0:00:06]} 36. Qxe4 {[%emt 0:00:16]} Rxh3+ {[%emt 0:02:34] KQR-KQB} 37. Kg2 {[%emt 0:00:01] aiming for Qe6+.} Rh2+ {[%emt 0:00:11]} 38. Kg1 {[%emt 0:00:24]} Rh4 {[%emt 0:00:53]} 39. Qe6+ {[%emt 0:00:01]} Kh7 {[%emt 0:00:49] ( -> ...Qf3)} 40. Kg2 {[%emt 0:03:09] Against Qf3+} Rg4+ {[%emt 0:00:11]} 41. Kf1 {[%emt 0:30:11]} Rg6 {[%emt 0:30:05] Weighted Error Value: White=0.80/Black=0.08 (flawless)} 0-1

[Event "Krakow Championship-A 2022"]
[Site "Krakow"]
[Date "2022.06.25"]
[Round "1.9"]
[White "Nguyen, Piotr"]
[Black "Jacobsen, Mikkel Manosri"]
[Result "1-0"]
[ECO "A37"]
[WhiteElo "2402"]
[BlackElo "2251"]
[Annotator "TA"]
[PlyCount "73"]
[EventDate "2022.06.25"]
[EventType "swiss"]
[EventCountry "POL"]
[SourceTitle "playchess.com"]
[Source "ChessBase"]
[SourceQuality "1"]
[TimeControl "40/5400+30:1800+30"]

{[%evp 12,73,-12,-6,-4,-20,-7,-18,7,4,15,0,0,0,15,4,34,24,36,28,81,85,126,116,139,136,126,132,150,156,131,131,130,136,133,133,156,151,117,138,140,137,194,114,121,128,261,204,345,225,225,218,393,176,325,158,151,87,29974,29975,29974,29967,29996,29996]} 1. c4 c5 {[%emt 0:00:05]} 2. g3 {[%emt 0:00:25]} g6 {[%emt 0:00:05]} 3. Bg2 {[%emt 0:00:04]} Bg7 {[%emt 0:00:04]} 4. Nf3 {[%emt 0:00:09]} Nc6 {[%emt 0:00:06]} 5. Nc3 {[%emt 0:00:24]} e6 {[%emt 0:00:14]} 6. d3 {[%emt 0:00:52]} Nge7 {[%emt 0:00:07]} 7. h4 {[%emt 0:00:07]} h6 {[%emt 0:00:56] A37: Symmetrical English vs ...g6: 4 Bg2 Bg7 5 Nf3.} 8. Bd2 {[%emt 0:00:56]} b6 {[%emt 0:02:04]} 9. a3 {[%emt 0:00:38][%cal Ob2b4]} Bb7 {[%emt 0:02:30] The position is equal.} 10. O-O {[%emt 0:03:14][%cal Ob2b4]} O-O {[%emt 0:02:09]} 11. Qc1 {[%emt 0:07:52]} Kh7 {[%emt 0:00:30]} 12. Rb1 {[%emt 0:00:07]} d5 {[%emt 0:04:26]} 13. b4 {[%emt 0:00:32] White wants to play bxc5.} cxb4 {[%emt 0:09:46]} (13... Nd4 $5 {[%cal Rd5c4]}) 14. axb4 {[%emt 0:00:07]} dxc4 {[%emt 0:00:18]} 15. dxc4 {[%emt 0:00:07]} Nf5 {[%emt 0:10:38]} (15... Nd4 $1 $11 {keeps the balance.}) 16. c5 $1 $16 {[%emt 0:07:29]} bxc5 {[%emt 0:01:13]} 17. bxc5 {[%emt 0:00:04]} Rb8 {[%emt 0:00:22]} 18. Bf4 {[%emt 0:25:02]} e5 {[%emt 0:05:11] [#]} 19. Nxe5 {[%emt 0:02:11][%mdl 512]} Bxe5 {[%emt 0:00:46]} 20. Bxe5 {[%emt 0:04:07]} Nxe5 {[%emt 0:00:14]} 21. Bxb7 {[%emt 0:01:13]} (21. Rxb7 Rxb7 22. Bxb7 Qc7 $16) 21... Qd4 {[%emt 0:02:13] [#]} 22. Nb5 $1 {[%emt 0:02:38][%csl LRa7,LRd4]} Qg4 {[%emt 0:03:22]} 23. Bg2 {[%emt 0:02:51] Threatens to win with Qc3.} (23. Nxa7 $6 Nxg3 24. fxg3 Rxb7 25. Rxb7 Qxg3+ 26. Kh1 Qh3+ 27. Kg1 Qg3+ 28. Kh1 Qh3+ 29. Kg1 Qg3+ $11) 23... Qxe2 {[%emt 0:22:14] [#]} 24. Qc3 $146 {[%emt 0:03:20]} ({Predecessor:} 24. Nxa7 Rxb1 25. Qxb1 Nf3+ 26. Bxf3 Qxf3 27. Qd1 Qa3 28. Qa1 Qxc5 29. Rc1 Qd5 30. Nc6 {0-1 (40) Neef,M (2504)-Lokander,M (2475) Germany 2022}) 24... Rxb5 {[%emt 0:14:44]} 25. Rxb5 {[%emt 0:00:24]} Qxb5 {[%emt 0:00:10]} 26. Qxe5 {[%emt 0:00:04]} Re8 {[%emt 0:01:28] [#]} (26... Qd7 $16 27. c6 Qd4 28. Qxd4 Nxd4) 27. Qd5 {[%emt 0:09:57]} ({White should play} 27. Qc3 $1 $18) 27... Re7 {[%emt 0:01:31]} 28. h5 {[%emt 0:00:49]} Qb4 {[%emt 0:06:14]} (28... a5 $16 29. Rd1 a4) 29. c6 {[%emt 0:06:25] Rd1 is the strong threat.} Kg7 {[%emt 0:01:41]} (29... Qd6 {keeps fighting.} 30. hxg6+ fxg6 31. Qxd6 Nxd6) 30. Rc1 {[%emt 0:03:27]} Qb2 {[%emt 0:02:23]} 31. Qc5 {[%emt 0:03:58] And now c7 would win.} Nd4 $2 {[%emt 0:06:11]} (31... Re5 {was called for.} 32. Qc3 Qxc3 33. Rxc3 Ne7 34. hxg6 Re1+ 35. Bf1 fxg6) 32. Kh2 {[%emt 0:11:53]} (32. c7 Ne2+ 33. Kh2 Rxc7 34. Qxc7 Nxc1 $16) (32. Rd1 $142 Nxc6 33. Qxc6) 32... Re8 {[%emt 0:01:57]} (32... Nxc6 $142 33. Qxc6 (33. Bxc6 Re5 $18) 33... Qxf2) 33. c7 {[%emt 0:02:43]} ({Avoid the trap} 33. Qxa7 $2 Qxf2 34. Rf1 Nf3+ 35. Kh1 Qxa7 $19) (33. hxg6 $18 Kxg6 34. c7) 33... Qxf2 {[%emt 0:00:26]} 34. c8=Q {[%emt 0:01:40]} (34. Kh3 $142 Re2 35. Qd5 (35. c8=Q $2 {is a self mate.} Qxg2+ 36. Kh4 Re4+ 37. g4 Qh2#)) 34... Nf3+ $2 {[%emt 0:00:35][%mdl 8192]} (34... Rxc8 $16 35. Qxc8 (35. Qe5+ Kh7 $14) 35... Ne2) 35. Kh3 {[%emt 0:00:16] White mates.} Ng5+ {[%emt 0:00:09] [#]} 36. Qxg5 $3 {[%emt 0:00:42]} Re2 {[%emt 0:00:51]} (36... Rxc8 37. Qe5+) 37. Qc3+ {[%emt 0:00:17] Weighted Error Value: White=0.26 (precise) /Black=0.49} 1-0